[Event "*** Titled Tuesday Blitz"]
[Site "Chess.com"]
[Date "2021.04.20"]
[Round "1"]
[White "Steegersee"]
[Black "szachuspl"]
[Result "0-1"]
[WhiteElo "2219"]
[BlackElo "2543"]
[TimeControl "180+1"]
[EndTime "10:06:20 PDT"]
[Termination "szachuspl won by resignation"]

1. d4 {[%clk 0:02:52.8]} 1... Nf6 {[%clk 0:02:51.3]} 2. Nf3 {[%clk 0:02:51.3]}
2... g6 {[%clk 0:02:51]} 3. c4 {[%clk 0:02:48.9]} 3... Bg7 {[%clk 0:02:50.9]} 4.
Nc3 {[%clk 0:02:48.8]} 4... O-O {[%clk 0:02:50.7]} 5. e4 {[%clk 0:02:45.9]} 5...
d6 {[%clk 0:02:50.5]} 6. Be2 {[%clk 0:02:40.9]} 6... e5 {[%clk 0:02:49.4]} 7.
dxe5 {[%clk 0:02:30.9]} 7... dxe5 {[%clk 0:02:49.1]} 8. Qxd8 {[%clk 0:02:29.6]}
8... Rxd8 {[%clk 0:02:48.6]} 9. Bg5 {[%clk 0:02:30.2]} 9... Rf8 {[%clk
0:02:40.7]} 10. Nxe5 {[%clk 0:02:21.3]} 10... Re8 {[%clk 0:02:34.7]} 11. f4
{[%clk 0:02:14.1]} 11... h6 {[%clk 0:02:16.1]} 12. Bxf6 {[%clk 0:02:00]} 12...
Bxf6 {[%clk 0:02:15.9]} 13. Nd5 {[%clk 0:02:00.1]} 13... Bd8 {[%clk 0:02:06.5]}
14. O-O-O {[%clk 0:01:18.8]} 14... c6 {[%clk 0:02:05.8]} 15. Nc3 {[%clk
0:01:17]} 15... Bb6 {[%clk 0:02:02.8]} 16. g3 {[%clk 0:01:11.8]} 16... Kg7
{[%clk 0:02:02.5]} 17. Bf3 {[%clk 0:01:07.4]} 17... f6 {[%clk 0:02:00.5]} 18.
Nd3 {[%clk 0:01:06.8]} 18... Nd7 {[%clk 0:02:00.2]} 19. Rhe1 {[%clk 0:01:00.7]}
19... Nf8 {[%clk 0:01:54.5]} 20. c5 {[%clk 0:00:42.5]} 20... Bc7 {[%clk
0:01:53.2]} 21. Kc2 {[%clk 0:00:39.5]} 21... Be6 {[%clk 0:01:52.6]} 22. e5
{[%clk 0:00:37.2]} 22... f5 {[%clk 0:01:52.1]} 23. Ne2 {[%clk 0:00:35]} 23...
Rad8 {[%clk 0:01:50.8]} 24. Kc3 {[%clk 0:00:29.6]} 24... Bf7 {[%clk 0:01:45]}
25. Nd4 {[%clk 0:00:28]} 25... Ne6 {[%clk 0:01:45]} 26. Nxe6+ {[%clk 0:00:21.6]}
26... Bxe6 {[%clk 0:01:45.9]} 27. a3 {[%clk 0:00:19]} 27... a6 {[%clk
0:01:42.5]} 28. b4 {[%clk 0:00:19.3]} 28... g5 {[%clk 0:01:41.3]} 29. Nf2 {[%clk
0:00:17.5]} 29... a5 {[%clk 0:01:37.7]} 30. Rxd8 {[%clk 0:00:15.8]} 30... Rxd8
{[%clk 0:01:38.6]} 31. Rd1 {[%clk 0:00:16.2]} 31... Ra8 {[%clk 0:01:38.5]} 32.
Kb2 {[%clk 0:00:12.5]} 32... axb4 {[%clk 0:01:38.4]} 33. axb4 {[%clk 0:00:13.4]}
33... Ra2+ {[%clk 0:01:37.9]} 34. Kc3 {[%clk 0:00:11]} 34... Rxf2 {[%clk
0:01:38.8]} 35. Bh5 {[%clk 0:00:10]} 35... Kf8 {[%clk 0:01:33.3]} 36. h4 {[%clk
0:00:07.6]} 36... gxh4 {[%clk 0:01:32.9]} 37. gxh4 {[%clk 0:00:08.5]} 37... Rxf4
{[%clk 0:01:33.4]} 38. Rg1 {[%clk 0:00:09.1]} 38... Rxh4 {[%clk 0:01:31.5]} 39.
Be2 {[%clk 0:00:08.8]} 39... Bxe5+ {[%clk 0:01:28.9]} 40. Kc2 {[%clk 0:00:07.9]}
40... f4 {[%clk 0:01:28.7]} 41. Bd3 {[%clk 0:00:07.3]} 41... Rh2+ {[%clk
0:01:28.4]} 42. Kc1 {[%clk 0:00:05.9]} 42... Bd5 {[%clk 0:01:28.3]} 43. Re1
{[%clk 0:00:05.7]} 43... Rh1 {[%clk 0:01:28.1]} 44. Rxh1 {[%clk 0:00:04.7]}
44... Bxh1 {[%clk 0:01:29]} 45. Bf1 {[%clk 0:00:03.8]} 0-1

[Event "*** Titled Tuesday Blitz"]
[Site "Chess.com"]
[Date "2021.04.20"]
[Round "1"]
[White "GMRafpig"]
[Black "Loy_Konstantin"]
[Result "1-0"]
[WhiteElo "2684"]
[BlackElo "2373"]
[TimeControl "180+1"]
[EndTime "10:06:21 PDT"]
[Termination "GMRafpig won on time"]

1. c4 {[%clk 0:02:54.5]} 1... c5 {[%clk 0:02:47.1]} 2. g3 {[%clk 0:02:54]} 2...
g6 {[%clk 0:02:46.6]} 3. Bg2 {[%clk 0:02:54.1]} 3... Bg7 {[%clk 0:02:47.2]} 4.
Nc3 {[%clk 0:02:53.8]} 4... Nc6 {[%clk 0:02:47.4]} 5. b3 {[%clk 0:02:53.4]} 5...
Nf6 {[%clk 0:02:46.8]} 6. Bb2 {[%clk 0:02:53.7]} 6... O-O {[%clk 0:02:47.2]} 7.
Nf3 {[%clk 0:02:52.1]} 7... e5 {[%clk 0:02:47.2]} 8. O-O {[%clk 0:02:48.6]} 8...
d6 {[%clk 0:02:47.7]} 9. d3 {[%clk 0:02:48.8]} 9... Ne8 {[%clk 0:02:47.3]} 10.
Qd2 {[%clk 0:02:41]} 10... Nc7 {[%clk 0:02:46.4]} 11. a3 {[%clk 0:02:38.2]}
11... Bf5 {[%clk 0:02:34.7]} 12. b4 {[%clk 0:02:32.1]} 12... Rb8 {[%clk
0:02:25]} 13. b5 {[%clk 0:02:09.5]} 13... Nd4 {[%clk 0:02:20.3]} 14. Nxd4 {[%clk
0:02:03.6]} 14... exd4 {[%clk 0:01:50.6]} 15. Nd5 {[%clk 0:01:57.7]} 15... Nxd5
{[%clk 0:01:15.3]} 16. Bxd5 {[%clk 0:01:58.6]} 16... Qd7 {[%clk 0:01:06.7]} 17.
e3 {[%clk 0:01:46.3]} 17... dxe3 {[%clk 0:01:02]} 18. fxe3 {[%clk 0:01:45.9]}
18... Bxb2 {[%clk 0:01:00.2]} 19. Qxb2 {[%clk 0:01:46.8]} 19... Bxd3 {[%clk
0:00:56.7]} 20. Rf6 {[%clk 0:01:44.6]} 20... Rbe8 {[%clk 0:00:46.4]} 21. Qf2
{[%clk 0:01:41.2]} 21... Re5 {[%clk 0:00:42.5]} 22. Qf4 {[%clk 0:01:22.8]} 22...
Rf5 {[%clk 0:00:29.8]} 23. Rxf5 {[%clk 0:01:20.4]} 23... Bxf5 {[%clk 0:00:29.3]}
24. Rd1 {[%clk 0:01:17.1]} 24... Re8 {[%clk 0:00:24.4]} 25. Bf3 {[%clk
0:01:15.2]} 25... Re5 {[%clk 0:00:18.8]} 26. Qxe5 {[%clk 0:01:12]} 26... dxe5
{[%clk 0:00:18.3]} 27. Rxd7 {[%clk 0:01:12.6]} 27... Bxd7 {[%clk 0:00:19]} 28.
Bxb7 {[%clk 0:01:12.7]} 28... Be6 {[%clk 0:00:17.2]} 29. Bd5 {[%clk 0:01:06]}
29... Bd7 {[%clk 0:00:03]} 30. a4 {[%clk 0:01:03.4]} 30... Kf8 {[%clk
0:00:03.3]} 31. a5 {[%clk 0:01:03.4]} 31... Bc8 {[%clk 0:00:03.3]} 32. b6 {[%clk
0:01:02.3]} 32... axb6 {[%clk 0:00:03.5]} 33. axb6 {[%clk 0:01:03.2]} 1-0

[Event "*** Titled Tuesday Blitz"]
[Site "Chess.com"]
[Date "2021.04.20"]
[Round "1"]
[White "dodorox"]
[Black "davidkalashian"]
[Result "0-1"]
[WhiteElo "2113"]
[BlackElo "2504"]
[TimeControl "180+1"]
[EndTime "10:06:21 PDT"]
[Termination "davidkalashian won on time"]

1. d4 {[%clk 0:02:01.2]} 1... Nf6 {[%clk 0:02:58.1]} 2. c4 {[%clk 0:02:01]} 2...
e6 {[%clk 0:02:59]} 3. Nc3 {[%clk 0:01:59.9]} 3... Bb4 {[%clk 0:02:58.4]} 4. Bd2
{[%clk 0:02:00.5]} 4... O-O {[%clk 0:02:57.5]} 5. e3 {[%clk 0:02:00.9]} 5... b6
{[%clk 0:02:57.7]} 6. Nf3 {[%clk 0:01:59]} 6... Bb7 {[%clk 0:02:57.5]} 7. Rc1
{[%clk 0:01:58]} 7... c5 {[%clk 0:02:55.8]} 8. a3 {[%clk 0:01:51.7]} 8... Bxc3
{[%clk 0:02:54.3]} 9. Bxc3 {[%clk 0:01:51.1]} 9... Ne4 {[%clk 0:02:55.2]} 10.
Bd3 {[%clk 0:01:47.7]} 10... Nxc3 {[%clk 0:02:47.8]} 11. Rxc3 {[%clk 0:01:43.5]}
11... cxd4 {[%clk 0:02:47.2]} 12. exd4 {[%clk 0:01:34.2]} 12... d6 {[%clk
0:02:46.8]} 13. O-O {[%clk 0:01:33.2]} 13... Nd7 {[%clk 0:02:46.1]} 14. b4
{[%clk 0:01:26.2]} 14... a5 {[%clk 0:02:43.2]} 15. Qe2 {[%clk 0:01:11]} 15...
axb4 {[%clk 0:02:42.2]} 16. axb4 {[%clk 0:01:11.3]} 16... Qf6 {[%clk 0:02:42.1]}
17. Be4 {[%clk 0:01:05]} 17... Bxe4 {[%clk 0:02:27.5]} 18. Qxe4 {[%clk
0:01:05.9]} 18... Rfc8 {[%clk 0:02:27.8]} 19. Rfc1 {[%clk 0:00:54.3]} 19... h6
{[%clk 0:02:26.9]} 20. h3 {[%clk 0:00:51.1]} 20... Ra4 {[%clk 0:02:25.7]} 21.
Qb1 {[%clk 0:00:37.3]} 21... Rca8 {[%clk 0:02:21.1]} 22. c5 {[%clk 0:00:20]}
22... bxc5 {[%clk 0:02:19.3]} 23. bxc5 {[%clk 0:00:20.4]} 23... dxc5 {[%clk
0:02:16.7]} 24. dxc5 {[%clk 0:00:19.7]} 24... Ra1 {[%clk 0:02:09.7]} 25. Qd3
{[%clk 0:00:14.2]} 25... Rxc1+ {[%clk 0:02:00.5]} 26. Rxc1 {[%clk 0:00:13.8]}
26... Ra1 {[%clk 0:01:57.4]} 27. Rxa1 {[%clk 0:00:08.5]} 27... Qxa1+ {[%clk
0:01:56.9]} 28. Kh2 {[%clk 0:00:08.3]} 28... Nxc5 {[%clk 0:01:56.7]} 29. Qd6
{[%clk 0:00:05.6]} 29... Ne4 {[%clk 0:01:52.3]} 30. Qd8+ {[%clk 0:00:03.8]}
30... Kh7 {[%clk 0:01:52.4]} 31. Qd3 {[%clk 0:00:04.3]} 31... f5 {[%clk
0:01:52.5]} 32. Qe3 {[%clk 0:00:03.1]} 32... Qb2 {[%clk 0:01:48.9]} 33. Nd4
{[%clk 0:00:01.4]} 33... g5 {[%clk 0:01:38.3]} 34. f3 {[%clk 0:00:01.7]} 34...
Qb8+ {[%clk 0:01:16.9]} 35. Kg1 {[%clk 0:00:01.2]} 35... Qg3 {[%clk 0:01:11.3]}
0-1

[Event "*** Titled Tuesday Blitz"]
[Site "Chess.com"]
[Date "2021.04.20"]
[Round "1"]
[White "Sharpchess22"]
[Black "InitiatingASC"]
[Result "1-0"]
[WhiteElo "2803"]
[BlackElo "2427"]
[TimeControl "180+1"]
[EndTime "10:06:22 PDT"]
[Termination "Sharpchess22 won by resignation"]

1. c4 {[%clk 0:03:00.9]} 1... Nf6 {[%clk 0:02:58.6]} 2. Nf3 {[%clk 0:03:01.1]}
2... e6 {[%clk 0:02:59.1]} 3. g3 {[%clk 0:03:01.2]} 3... b6 {[%clk 0:02:58]} 4.
Bg2 {[%clk 0:03:01.3]} 4... Bb7 {[%clk 0:02:58.8]} 5. O-O {[%clk 0:03:01.7]}
5... Be7 {[%clk 0:02:58.2]} 6. b3 {[%clk 0:03:02.1]} 6... O-O {[%clk 0:02:58.7]}
7. Bb2 {[%clk 0:03:02.4]} 7... c5 {[%clk 0:02:58]} 8. e3 {[%clk 0:03:02.5]} 8...
d6 {[%clk 0:02:58.1]} 9. d4 {[%clk 0:03:01.2]} 9... cxd4 {[%clk 0:02:59]} 10.
Nxd4 {[%clk 0:02:56.2]} 10... Bxg2 {[%clk 0:02:58.3]} 11. Kxg2 {[%clk
0:02:57.1]} 11... Nbd7 {[%clk 0:02:55.5]} 12. Nc6 {[%clk 0:02:56.1]} 12... Qe8
{[%clk 0:02:55.6]} 13. Nc3 {[%clk 0:02:41.8]} 13... Nc5 {[%clk 0:02:53.5]} 14.
Qf3 {[%clk 0:02:36.1]} 14... Nd3 {[%clk 0:02:38]} 15. Ba3 {[%clk 0:02:31.8]}
15... Ne5 {[%clk 0:02:35.1]} 16. Nxe7+ {[%clk 0:02:31]} 16... Qxe7 {[%clk
0:02:33.1]} 17. Qf4 {[%clk 0:02:24.1]} 17... Qb7+ {[%clk 0:02:31.8]} 18. e4
{[%clk 0:02:23.8]} 18... Rfd8 {[%clk 0:02:26.3]} 19. Rad1 {[%clk 0:02:19.5]}
19... Ng6 {[%clk 0:02:18.3]} 20. Qf3 {[%clk 0:02:19]} 20... Ne5 {[%clk
0:02:17.6]} 21. Qe2 {[%clk 0:02:18.8]} 21... Ne8 {[%clk 0:01:56.5]} 22. f4
{[%clk 0:02:14.4]} 22... Ng6 {[%clk 0:01:49.5]} 23. Rd2 {[%clk 0:02:03.8]} 23...
Rd7 {[%clk 0:01:45.8]} 24. Rfd1 {[%clk 0:02:03.6]} 24... Rad8 {[%clk 0:01:46.1]}
25. Qf3 {[%clk 0:02:02.7]} 25... a6 {[%clk 0:01:45.9]} 26. Bb4 {[%clk
0:02:02.3]} 26... Ne7 {[%clk 0:01:39.8]} 27. Ba3 {[%clk 0:01:53]} 27... b5
{[%clk 0:01:30.6]} 28. cxb5 {[%clk 0:01:51.8]} 28... axb5 {[%clk 0:01:31.5]} 29.
Bb2 {[%clk 0:01:51.1]} 29... Nf6 {[%clk 0:01:15.2]} 30. b4 {[%clk 0:01:50.2]}
30... d5 {[%clk 0:01:09.9]} 31. exd5 {[%clk 0:01:41.5]} 31... Nfxd5 {[%clk
0:01:09.3]} 32. Nxd5 {[%clk 0:01:41.3]} 32... Rxd5 {[%clk 0:01:07.8]} 33. Rxd5
{[%clk 0:01:40.8]} 33... Nxd5 {[%clk 0:00:59.2]} 34. Rd4 {[%clk 0:01:38]} 34...
Rc8 {[%clk 0:00:39.2]} 35. Rd2 {[%clk 0:01:27.6]} 35... Ne3+ {[%clk 0:00:20.3]}
36. Kf2 {[%clk 0:01:27.6]} 36... Qxf3+ {[%clk 0:00:20]} 37. Kxf3 {[%clk
0:01:27.6]} 37... Nc4 {[%clk 0:00:20.7]} 38. Re2 {[%clk 0:01:26.2]} 38... Nxb2
{[%clk 0:00:20.5]} 39. Rxb2 {[%clk 0:01:25.9]} 39... Rc3+ {[%clk 0:00:20.5]} 40.
Ke4 {[%clk 0:01:23.9]} 40... f6 {[%clk 0:00:19.8]} 41. Kd4 {[%clk 0:01:24.2]}
41... Ra3 {[%clk 0:00:19.7]} 42. Kc5 {[%clk 0:01:21.8]} 42... e5 {[%clk
0:00:20.1]} 43. fxe5 {[%clk 0:01:21.3]} 43... fxe5 {[%clk 0:00:20.1]} 44. Kxb5
{[%clk 0:01:21]} 44... e4 {[%clk 0:00:20.9]} 45. Kc4 {[%clk 0:01:20.4]} 45... e3
{[%clk 0:00:21.2]} 46. b5 {[%clk 0:01:18.7]} 46... Ra4+ {[%clk 0:00:21.5]} 47.
Kd3 {[%clk 0:01:18.6]} 47... Ra3+ {[%clk 0:00:20.6]} 48. Ke2 {[%clk 0:01:18.6]}
48... Kf7 {[%clk 0:00:20.7]} 49. b6 {[%clk 0:01:18.4]} 1-0

[Event "*** Titled Tuesday Blitz"]
[Site "Chess.com"]
[Date "2021.04.20"]
[Round "1"]
[White "Jungle_Jaguar"]
[Black "googlegoom"]
[Result "1-0"]
[WhiteElo "2718"]
[BlackElo "2400"]
[TimeControl "180+1"]
[EndTime "10:06:22 PDT"]
[Termination "Jungle_Jaguar won by checkmate"]

1. e4 {[%clk 0:02:59.5]} 1... c5 {[%clk 0:02:59.9]} 2. Nf3 {[%clk 0:02:58.1]}
2... Nc6 {[%clk 0:03:00.4]} 3. Bb5 {[%clk 0:02:57.7]} 3... Qb6 {[%clk
0:03:00.1]} 4. c4 {[%clk 0:02:56.4]} 4... e6 {[%clk 0:02:59]} 5. O-O {[%clk
0:02:56.2]} 5... d6 {[%clk 0:02:58.3]} 6. d4 {[%clk 0:02:55.2]} 6... cxd4 {[%clk
0:02:58.2]} 7. Nxd4 {[%clk 0:02:55.1]} 7... Bd7 {[%clk 0:02:58.8]} 8. Be3 {[%clk
0:02:54.2]} 8... Qc7 {[%clk 0:02:58.1]} 9. Nc3 {[%clk 0:02:51.7]} 9... a6 {[%clk
0:02:56.5]} 10. Ba4 {[%clk 0:02:50.9]} 10... Nf6 {[%clk 0:02:56.2]} 11. Rc1
{[%clk 0:02:42]} 11... Nxd4 {[%clk 0:02:56.4]} 12. Bxd4 {[%clk 0:02:40.3]} 12...
Be7 {[%clk 0:02:55.1]} 13. Bc2 {[%clk 0:02:28.2]} 13... Rc8 {[%clk 0:02:19.6]}
14. b3 {[%clk 0:02:26.9]} 14... e5 {[%clk 0:02:13.7]} 15. Be3 {[%clk 0:02:24.7]}
15... b5 {[%clk 0:02:13.8]} 16. Nd5 {[%clk 0:02:19]} 16... Nxd5 {[%clk
0:02:12.8]} 17. cxd5 {[%clk 0:02:18.8]} 17... Qb7 {[%clk 0:02:04.3]} 18. Qd2
{[%clk 0:02:15]} 18... Bf6 {[%clk 0:01:54]} 19. Qb4 {[%clk 0:02:10.3]} 19... Qb8
{[%clk 0:01:53.7]} 20. Bd3 {[%clk 0:02:05.3]} 20... O-O {[%clk 0:01:48.6]} 21.
h3 {[%clk 0:01:56.7]} 21... Rxc1 {[%clk 0:01:43.7]} 22. Bxc1 {[%clk 0:01:55.3]}
22... g6 {[%clk 0:01:30.1]} 23. Ba3 {[%clk 0:01:52.7]} 23... Be7 {[%clk
0:01:29.5]} 24. f4 {[%clk 0:01:50.2]} 24... exf4 {[%clk 0:01:16.2]} 25. e5
{[%clk 0:01:45.2]} 25... Qb6+ {[%clk 0:01:02.5]} 26. Kh2 {[%clk 0:01:45.1]}
26... Qe3 {[%clk 0:00:58.9]} 27. Rf3 {[%clk 0:01:41.8]} 27... Qxe5 {[%clk
0:00:58.5]} 28. Qd2 {[%clk 0:01:40.1]} 28... Qxd5 {[%clk 0:00:51.5]} 29. Qxf4
{[%clk 0:01:34.6]} 29... Bc6 {[%clk 0:00:36.9]} 30. Bb2 {[%clk 0:01:29.2]} 30...
Qe6 {[%clk 0:00:17.4]} 31. Re3 {[%clk 0:01:24.9]} 31... Qd7 {[%clk 0:00:17.5]}
32. Qh6 {[%clk 0:01:23.3]} 32... f6 {[%clk 0:00:17]} 33. Bxg6 {[%clk 0:01:23]}
33... hxg6 {[%clk 0:00:12.6]} 34. Qxg6+ {[%clk 0:01:23.9]} 34... Kh8 {[%clk
0:00:13.2]} 35. Qh6+ {[%clk 0:01:09.7]} 35... Kg8 {[%clk 0:00:13.1]} 36. Rg3+
{[%clk 0:01:07.2]} 36... Kf7 {[%clk 0:00:13.5]} 37. Qg6+ {[%clk 0:01:07.8]}
37... Ke6 {[%clk 0:00:13.8]} 38. Re3+ {[%clk 0:01:08.4]} 38... Kd5 {[%clk
0:00:11]} 39. Qe4+ {[%clk 0:01:08.7]} 39... Kc5 {[%clk 0:00:11.4]} 40. Qd4#
{[%clk 0:01:09.3]} 1-0

[Event "*** Titled Tuesday Blitz"]
[Site "Chess.com"]
[Date "2021.04.20"]
[Round "1"]
[White "aaaao"]
[Black "Flopezin"]
[Result "1-0"]
[WhiteElo "2645"]
[BlackElo "2340"]
[TimeControl "180+1"]
[EndTime "10:06:23 PDT"]
[Termination "aaaao won by resignation"]

1. e4 {[%clk 0:02:57.8]} 1... e5 {[%clk 0:02:45.7]} 2. Nf3 {[%clk 0:02:57.7]}
2... Nc6 {[%clk 0:02:45]} 3. Bb5 {[%clk 0:02:57.4]} 3... a6 {[%clk 0:02:43]} 4.
Bxc6 {[%clk 0:02:55.9]} 4... dxc6 {[%clk 0:02:42.9]} 5. O-O {[%clk 0:02:56.6]}
5... Bd6 {[%clk 0:02:42.2]} 6. d4 {[%clk 0:02:54.4]} 6... exd4 {[%clk
0:02:43.1]} 7. Qxd4 {[%clk 0:02:55]} 7... f6 {[%clk 0:02:43]} 8. Nc3 {[%clk
0:02:55.4]} 8... Ne7 {[%clk 0:02:40.6]} 9. h3 {[%clk 0:02:48]} 9... Ng6 {[%clk
0:02:37.3]} 10. Be3 {[%clk 0:02:46]} 10... Be6 {[%clk 0:02:34.5]} 11. Rad1
{[%clk 0:02:45.2]} 11... Qe7 {[%clk 0:02:34.7]} 12. Rfe1 {[%clk 0:02:43.8]}
12... O-O {[%clk 0:02:34.7]} 13. Qa4 {[%clk 0:02:22.1]} 13... Rfd8 {[%clk
0:02:23.2]} 14. Nd4 {[%clk 0:02:17.3]} 14... Bd7 {[%clk 0:02:17.7]} 15. Nf5
{[%clk 0:02:13.9]} 15... Qf8 {[%clk 0:02:10.9]} 16. Nxd6 {[%clk 0:02:10.6]}
16... cxd6 {[%clk 0:02:10.6]} 17. Qb4 {[%clk 0:02:09]} 17... Be6 {[%clk
0:01:59.4]} 18. Qxb7 {[%clk 0:02:08.4]} 18... Rab8 {[%clk 0:01:57.1]} 19. Qxa6
{[%clk 0:02:05.9]} 19... Rxb2 {[%clk 0:01:57.5]} 20. Rd2 {[%clk 0:02:03.5]}
20... Ne5 {[%clk 0:01:44.2]} 21. Bf4 {[%clk 0:01:41.2]} 21... Nc4 {[%clk
0:01:42]} 22. Rde2 {[%clk 0:01:39.2]} 22... Nb6 {[%clk 0:01:37.7]} 23. Be3
{[%clk 0:01:25.9]} 23... Bc4 {[%clk 0:01:33.2]} 24. Qa3 {[%clk 0:01:25.5]} 24...
Bxe2 {[%clk 0:01:08.5]} 25. Qxb2 {[%clk 0:01:25.3]} 25... Nc4 {[%clk 0:01:09.1]}
26. Qb7 {[%clk 0:01:16.8]} 26... Nxe3 {[%clk 0:01:07.2]} 27. Rxe2 {[%clk
0:01:15.7]} 27... Nc4 {[%clk 0:01:00.6]} 28. Qxc6 {[%clk 0:01:14.6]} 28... Rc8
{[%clk 0:01:00.8]} 29. Qd5+ {[%clk 0:01:12.2]} 29... Qf7 {[%clk 0:01:00.8]} 30.
a4 {[%clk 0:00:56.8]} 30... Na3 {[%clk 0:00:56.7]} 31. Qxf7+ {[%clk 0:00:42.2]}
31... Kxf7 {[%clk 0:00:56.6]} 32. Nb5 {[%clk 0:00:42.9]} 32... Nc4 {[%clk
0:00:40.6]} 33. c3 {[%clk 0:00:40.6]} 33... Ke6 {[%clk 0:00:38.3]} 34. f4 {[%clk
0:00:39.8]} 34... Ra8 {[%clk 0:00:35.1]} 35. Nc7+ {[%clk 0:00:39.7]} 1-0

[Event "*** Titled Tuesday Blitz"]
[Site "Chess.com"]
[Date "2021.04.20"]
[Round "1"]
[White "maximych26"]
[Black "korbul"]
[Result "0-1"]
[WhiteElo "2270"]
[BlackElo "2587"]
[TimeControl "180+1"]
[EndTime "10:06:24 PDT"]
[Termination "korbul won by resignation"]

1. e4 {[%clk 0:02:59.5]} 1... c5 {[%clk 0:02:59.6]} 2. Nf3 {[%clk 0:02:58]} 2...
e6 {[%clk 0:02:59.8]} 3. c3 {[%clk 0:02:55.9]} 3... Nf6 {[%clk 0:02:56.9]} 4. e5
{[%clk 0:02:55.8]} 4... Nd5 {[%clk 0:02:56.8]} 5. d4 {[%clk 0:02:56]} 5... cxd4
{[%clk 0:02:56.4]} 6. cxd4 {[%clk 0:02:56]} 6... d6 {[%clk 0:02:56.9]} 7. Nc3
{[%clk 0:02:54.2]} 7... Nxc3 {[%clk 0:02:55.9]} 8. bxc3 {[%clk 0:02:52.3]} 8...
Qc7 {[%clk 0:02:56.8]} 9. Bd2 {[%clk 0:02:49.1]} 9... Nc6 {[%clk 0:02:56.7]} 10.
Bb5 {[%clk 0:02:44.1]} 10... Bd7 {[%clk 0:02:55.3]} 11. Qe2 {[%clk 0:02:39.4]}
11... Be7 {[%clk 0:02:51.9]} 12. O-O {[%clk 0:02:38.2]} 12... O-O {[%clk
0:02:50.7]} 13. exd6 {[%clk 0:02:38.1]} 13... Bxd6 {[%clk 0:02:50.1]} 14. Rab1
{[%clk 0:02:38.6]} 14... a6 {[%clk 0:02:48.9]} 15. Bd3 {[%clk 0:02:38.3]} 15...
b5 {[%clk 0:02:46.9]} 16. Qe4 {[%clk 0:02:37.9]} 16... f5 {[%clk 0:02:41.8]} 17.
Qe2 {[%clk 0:02:37]} 17... Na5 {[%clk 0:02:36.9]} 18. Rfe1 {[%clk 0:02:33.1]}
18... Rae8 {[%clk 0:02:34.4]} 19. h3 {[%clk 0:02:31.2]} 19... Bc6 {[%clk
0:02:32.5]} 20. Ng5 {[%clk 0:02:29]} 20... Bd5 {[%clk 0:02:26]} 21. a4 {[%clk
0:02:16.6]} 21... h6 {[%clk 0:02:11]} 22. Nf3 {[%clk 0:02:15]} 22... bxa4 {[%clk
0:02:03.4]} 23. Bxa6 {[%clk 0:02:13.4]} 23... Nc4 {[%clk 0:01:58.4]} 24. Bb5
{[%clk 0:02:10.9]} 24... Ra8 {[%clk 0:01:49.9]} 25. Ra1 {[%clk 0:02:08.7]} 25...
a3 {[%clk 0:01:48.6]} 26. Bc1 {[%clk 0:02:04]} 26... Ra5 {[%clk 0:01:42.2]} 27.
Bxc4 {[%clk 0:01:55.7]} 27... Bxc4 {[%clk 0:01:41.5]} 28. Qc2 {[%clk 0:01:55.2]}
28... a2 {[%clk 0:01:37.2]} 29. Nd2 {[%clk 0:01:52.7]} 29... Bd5 {[%clk
0:01:31.5]} 30. c4 {[%clk 0:01:51.4]} 30... Rc8 {[%clk 0:01:27.2]} 31. Rxa2
{[%clk 0:01:50]} 31... Rxa2 {[%clk 0:01:24.2]} 32. Qxa2 {[%clk 0:01:49.8]} 32...
Bxc4 {[%clk 0:01:24.2]} 33. Nxc4 {[%clk 0:01:48.2]} 33... Qxc4 {[%clk 0:01:23]}
34. Qe2 {[%clk 0:01:37.7]} 34... Qxc1 {[%clk 0:01:12.9]} 35. Qxe6+ {[%clk
0:01:35.2]} 35... Kh8 {[%clk 0:01:12]} 36. g3 {[%clk 0:01:31.6]} 36... Qc7
{[%clk 0:01:08.9]} 37. Qxf5 {[%clk 0:01:30.6]} 37... Rf8 {[%clk 0:01:05.1]} 38.
Qg4 {[%clk 0:01:25.3]} 38... Qf7 {[%clk 0:01:03.2]} 39. Re2 {[%clk 0:01:22.6]}
39... Qf5 {[%clk 0:00:59.6]} 40. Qh4 {[%clk 0:01:12.9]} 40... Kh7 {[%clk
0:00:58.9]} 41. d5 {[%clk 0:01:09]} 41... Bc5 {[%clk 0:00:57.4]} 42. Qe4 {[%clk
0:00:59.4]} 42... Qxe4 {[%clk 0:00:48.2]} 43. Rxe4 {[%clk 0:00:58.7]} 43... Rxf2
{[%clk 0:00:46.1]} 44. Kh1 {[%clk 0:00:55.9]} 44... Rd2 {[%clk 0:00:44.8]} 45.
Re5 {[%clk 0:00:55.8]} 45... Bd6 {[%clk 0:00:43.2]} 46. Rf5 {[%clk 0:00:53.6]}
46... Bxg3 {[%clk 0:00:42.6]} 0-1

[Event "*** Titled Tuesday Blitz"]
[Site "Chess.com"]
[Date "2021.04.20"]
[Round "1"]
[White "elohunter1999"]
[Black "Joseacorrea"]
[Result "1-0"]
[WhiteElo "2491"]
[BlackElo "2062"]
[TimeControl "180+1"]
[EndTime "10:06:24 PDT"]
[Termination "elohunter1999 won on time"]

1. d4 {[%clk 0:03:00.9]} 1... e6 {[%clk 0:02:59.6]} 2. e4 {[%clk 0:02:58.2]}
2... c5 {[%clk 0:02:58.6]} 3. Nf3 {[%clk 0:02:56.5]} 3... cxd4 {[%clk
0:02:58.1]} 4. Nxd4 {[%clk 0:02:57.4]} 4... a6 {[%clk 0:02:58.5]} 5. Nc3 {[%clk
0:02:55.9]} 5... Nc6 {[%clk 0:02:58.6]} 6. Nxc6 {[%clk 0:02:52.8]} 6... bxc6
{[%clk 0:02:58.3]} 7. Bd3 {[%clk 0:02:52.5]} 7... d5 {[%clk 0:02:58]} 8. O-O
{[%clk 0:02:52.2]} 8... Nf6 {[%clk 0:02:51]} 9. Re1 {[%clk 0:02:51.6]} 9... Be7
{[%clk 0:02:48.7]} 10. e5 {[%clk 0:02:45.5]} 10... Nd7 {[%clk 0:02:47.9]} 11.
Qg4 {[%clk 0:02:45.1]} 11... g6 {[%clk 0:02:28.2]} 12. Bh6 {[%clk 0:02:42]}
12... Bb7 {[%clk 0:02:19.7]} 13. Nd1 {[%clk 0:02:29.3]} 13... Qc7 {[%clk
0:02:12.2]} 14. Qg3 {[%clk 0:02:14.2]} 14... O-O-O {[%clk 0:02:04.7]} 15. c4
{[%clk 0:02:14]} 15... Nc5 {[%clk 0:01:51.1]} 16. Bf1 {[%clk 0:02:08.2]} 16...
Ne4 {[%clk 0:01:44.4]} 17. Qd3 {[%clk 0:01:45.6]} 17... Qxe5 {[%clk 0:01:19.1]}
18. f3 {[%clk 0:01:45.3]} 18... Qh5 {[%clk 0:00:59.9]} 19. Be3 {[%clk
0:01:33.8]} 19... Bh4 {[%clk 0:00:26.2]} 20. g3 {[%clk 0:01:27.8]} 20... Nxg3
{[%clk 0:00:22.4]} 21. hxg3 {[%clk 0:01:26.8]} 21... Bxg3 {[%clk 0:00:23.3]} 22.
Qe2 {[%clk 0:01:06.8]} 22... Bxe1 {[%clk 0:00:18.7]} 23. Qxe1 {[%clk 0:01:05.5]}
23... dxc4 {[%clk 0:00:14.5]} 24. Qg3 {[%clk 0:00:53.2]} 24... c5 {[%clk
0:00:13.1]} 25. Be2 {[%clk 0:00:49.2]} 25... Qd5 {[%clk 0:00:05.9]} 26. Nc3
{[%clk 0:00:47.9]} 26... Qh5 {[%clk 0:00:03.2]} 27. Na4 {[%clk 0:00:44.5]} 1-0